Cogmind - Beta 12 @@@ ROGUE MODE // 2023.04.16 @ 20:29:32 Player: Decinym Result: Destroyed by Y-54 Guardian with Flak Gun Performance ------------- Evolutions (3) 1500 Regions Visited (9) 1800 Robots Destroyed (248) 1240 Value Destroyed (9995) 9995 Prototype IDs (28) 560 Alien Tech Used (0) 0 Bonus (5996) 5996 TOTAL SCORE: 21091 Bonus ------- Triggered High Security 500 High Alert Combat Kills 4303 Entered Garrisons 400 Used RIF Installer 500 Aligned with FarCom 300 Friendly Fire -7 Cogmind --------- Core Integrity 0/700 Matter 206/300 Energy 100/100 System Corruption 31% Temperature Warm (130) Movement Core (50) Location -7/Factory Parts ------- > --- POWER (1) -------- (None) > --- PROPULSION (4) --- (None) > --- UTILITY (6) ------ Advanced Targeting Computer > --- WEAPON (2) ------- (None) > --- INVENTORY (5) ---- High-capacity Matter Pod (200) System Shield Relay Coupler [NC] (29) Remote Datajack Plasma Cutter Peak State ------------ > --- POWER ------------ Heavy Deuterium Engine > --- PROPULSION ------- Light Treads Light Treads Light Treads Medium Treads > --- UTILITY ---------- Huge Storage Unit Advanced Targeting Computer Advanced Targeting Computer Experimental Core Analyzer Improved Light Armor Plating Hacking Suite > --- WEAPON ----------- AWS/EX-DEC > --- INVENTORY -------- Heavy Ion Engine Heavy Deuterium Engine Combat Antigrav System Cargo Storage Unit High-capacity Matter Pod High-capacity Matter Pod Improved Terrain Scan Processor Advanced Targeting Computer Advanced Launcher Guidance Computer System Shield Relay Coupler [NC] Relay Coupler [Grunt] Minigun Proton Missile Launcher Heavy Missile Launcher Heavy Missile Launcher Remote Datajack Plasma Cutter Powered Hammer Deploy-a-Sentry [Rating: 62] Favorites ----------- Power Improved Ion Engine Engine Improved Ion Engine Power Core Light Nuclear Core Propulsion Light Treads Treads Light Treads Leg Aluminum Leg Flight Unit Xenon Bombardment Thruster Utility Advanced Targeting Computer Device Cooling System Storage Huge Storage Unit Processor Advanced Targeting Computer Hackware Hacking Suite Protection Hardened Light Armor Plating Weapon Enhanced Autogun Energy Gun Medium Laser Ballistic Gun Enhanced Autogun Launcher Heavy Missile Launcher Special Weapon Mining Laser Impact Weapon Powered Hammer Build | -11 -10 -10 -10 -9 -8 -8 -8 -8 -7 ------- Run | Jun Mat Min Exi Min Mat Gar Mat Gar Fac Slots Evolved 6 | . . . . . 4 . . . 2 Power . | . . . . . . . . . . Propulsion 2 | . . . . . 1 . . . 1 Utility 4 | . . . . . 3 . . . 1 Weapon . | . . . . . . . . . . Parts Attached 164 | . 8 4 6 . 43 21 24 19 39 Power 12 | . 2 . 1 . 4 . 2 . 3 Engine 10 | . 2 . . . 3 . 2 . 3 Core 2 | . . . 1 . 1 . . . . Reactor . | . . . . . . . . . . Propulsion 42 | . 1 2 2 . 8 6 11 3 9 Treads 36 | . . 2 2 . 8 6 8 3 7 Leg 4 | . 1 . . . . . 3 . . Wheel . | . . . . . . . . . . Hover . | . . . . . . . . . . Flight 2 | . . . . . . . . . 2 Utility 37 | . 3 . 2 . 12 6 3 3 8 Device 5 | . . . . . 2 2 1 . . Storage 3 | . 1 . 1 . 1 . . . . Processor 6 | . . . . . 3 . 1 . 2 Hackware 3 | . . . . . . . . 1 2 Protection 20 | . 2 . 1 . 6 4 1 2 4 Artifact . | . . . . . . . . . . Weapon 73 | . 2 2 1 . 19 9 8 13 19 Energy Gun 7 | . 1 . . . 2 . 1 . 3 Energy Cannon . | . . . . . . . . . . Ballistic Gun 36 | . 1 1 . . 11 5 5 6 7 Ballistic Cannon . | . . . . . . . . . . Launcher 19 | . . 1 . . 6 . 2 3 7 Special Weapon 2 | . . . 1 . . . . . 1 Impact Weapon 9 | . . . . . . 4 . 4 1 Slashing Weapon . | . . . . . . . . . . Piercing Weapon . | . . . . . . . . . . Special Melee Weapon . | . . . . . . . . . . Unidentified Prototypes 4 | . . . . . 1 . 1 . 2 Corrupted Parts 1 | . . . . . . . . . 1 System Corruption 8 | . . . . . . . . . 8 Parts Lost 51 | . . . 5 . 6 6 7 2 25 Power 5 | . . . 1 . 1 . . . 3 Propulsion 21 | . . . 2 . 2 3 2 1 11 Utility 15 | . . . 1 . 2 3 2 1 6 Weapon 10 | . . . 1 . 1 . 3 . 5 Highest Loss Streak 9 | . . . 4 . 2 2 2 1 9 To Critical Strikes 4 | . . . 3 . . . . . 1 Average Slot Usage (%) 97 | . 95 100 99 100 97 97 99 99 94 Engine 8 | . 14 14 6 . 6 9 8 9 6 Core 1 | . . . 6 14 2 . . . . Treads 25 | . . 24 28 28 26 26 25 26 27 Leg 2 | . 28 3 . . . . 1 . . Device 2 | . . . . . 7 3 8 . . Storage 10 | . 14 14 14 14 9 9 9 9 6 Processor 14 | . . . . . 16 18 18 27 23 Protection 10 | . 9 14 14 14 10 11 9 9 9 Energy Gun 5 | . 20 14 14 14 4 . 5 . . Ballistic Gun 11 | . 8 13 6 . 11 14 12 16 11 Special Weapon 1 | . . . 6 14 . . . . . Naked Turns . | . . . . . . . . . . Heaviest Build 112 | 14 35 35 35 33 111 111 112 105 107 Greatest Support 88 | 20 20 40 40 40 60 60 62 62 88 Greatest Overweight (x) 30 | . 1 1 . . 1 1 9 2 30 Average Overweight (x) . | . . . . . . 1 1 1 . Largest Inventory Capacity 25 | . 15 15 15 15 25 25 25 25 25 Average Capacity 21 | . 10 15 15 15 22 25 25 25 24 Most Carried 25 | . 15 15 15 14 25 25 25 25 24 Average Carried 20 | . 9 13 13 14 20 24 24 24 21 Final Capacity 25 | 8 15 15 15 15 25 25 25 25 5 Final Carried 25 | 6 15 13 14 14 25 25 24 25 5 Class Distribution -------------------- 68% | Scavenger-Mutant 31% | Mutant Dominant Class ---------------- Mutant | -10/Materials Mutant | -10/Mines Mutant | -10/Exiles Mutant | -9/Mines Scavenger-Mutant | -8/Materials Scavenger-Mutant | -8/Garrison Scavenger-Mutant | -8/Materials Scavenger-Mutant | -8/Garrison Scavenger-Mutant | -7/Factory Resources | -11 -10 -10 -10 -9 -8 -8 -8 -8 -7 ----------- Run | Jun Mat Min Exi Min Mat Gar Mat Gar Fac Matter Collected 5080 | 200 191 129 61 . 1051 805 732 910 1001 Remotely . | . . . . . . . . . . Salvage Created 8405 | . 348 50 207 . 1538 1135 1611 666 2850 Parts 466 | . 24 . 9 3 86 76 83 52 133 Haulers Intercepted 6 | . 1 . . . 3 . 2 . . Recyclers Shooed 4 | . 3 . . 1 . . . . . Parts Field Recycled . | . . . . . . . . . . Retrieved Matter . | . . . . . . . . . . Parts Self-Destructed . | . . . . . . . . . . Prevented . | . . . . . . . . . . Kills | -11 -10 -10 -10 -9 -8 -8 -8 -8 -7 ------- Run | Jun Mat Min Exi Min Mat Gar Mat Gar Fac Combat Hostiles Destroyed 209 | . 9 12 2 . 36 28 35 30 57 Guns 132 | . 9 3 2 . 19 28 27 20 24 AOE 73 | . . 9 . . 17 . 8 10 29 Classes Destroyed 22 | . 5 1 1 1 4 1 3 2 4 Worker 12 | . . . . 1 4 . 3 . 4 Builder 4 | . . . . . 1 . 1 . 2 Tunneler 1 | . . . . . . . . . 1 Hauler 6 | . 1 . . . 3 . 2 . . Recycler 9 | . 1 . . . 2 . 2 . 4 Mechanic 4 | . . . . . . . 1 . 3 Operator 1 | . . . . . . . . . 1 Watcher 11 | . 1 . . . 2 . 2 . 6 Swarmer 42 | . 6 . . . 9 9 3 11 4 Cutter 2 | . . . . . . . . 2 . Saboteur 4 | . . . . . . . . 4 . Grunt 89 | . 3 . . . 19 12 20 7 28 Brawler 5 | . . . . . . . . . 5 Duelist 7 | . . . . . . . 2 . 5 Protector 4 | . . . . . . . 1 . 3 Sentry 27 | . . . . . 5 4 7 6 5 Specialist 2 | . . . . . . 2 . . . Hunter 10 | . . . . . 2 1 2 . 5 Programmer 2 | . . . . . . . . . 2 Heavy 1 | . . . . . 1 . . . . Zionite 4 | . . . 4 . . . . . . Assembled 13 | . . 12 1 . . . . . . Best Kill Streak 19 | . 3 10 2 1 12 4 7 6 19 Combat Bots Only 11 | . 3 10 1 . 10 4 6 6 11 Max Kills in Single Turn 6 | . 1 4 1 1 4 2 2 4 6 Gunslinging 1 | . . . . . 1 1 1 . . Exploded 5 | . . 4 . . 4 . 2 4 5 Melee . | . . . . . . . . . . Uniques/NPCs Destroyed 4 | . . . 4 . . . . . . EX-DEC (-10/Exiles) EX-HEX (-10/Exiles) EX-BIN (-10/Exiles) 8R-AWN (-10/Exiles) Combat | -11 -10 -10 -10 -9 -8 -8 -8 -8 -7 -------- Run | Jun Mat Min Exi Min Mat Gar Mat Gar Fac Damage Taken 9964 | . 399 172 673 . 1857 1412 1410 840 3201 Core 1360 | . 47 34 38 . 151 153 132 103 702 Absorbed by Shields 429 | . . . . . 372 57 . . . Regen/Repaired (Parts) 368 | . 116 . . . 252 . . . . Core Remaining (%) 51 | 100 . . . 52 . . . 2 . Volleys Fired 474 | . 31 17 63 . 92 73 94 44 60 Largest 2 | . 2 2 2 . 2 2 2 2 2 Hottest 150 | . 100 70 150 . 150 50 94 50 50 Shots Fired 882 | . 56 20 83 . 161 144 178 87 153 Gun 819 | . 56 12 81 . 141 144 169 82 134 Cannon . | . . . . . . . . . . Launcher 57 | . . 8 . . 17 . 9 5 18 Special 6 | . . . 2 . 3 . . . 1 Kinetic 588 | . 15 9 26 . 111 144 123 82 78 Thermal 180 | . 41 3 57 . 33 . 46 . . Explosive 54 | . . 8 . . 14 . 9 5 18 Electromagnetic 59 | . . . . . 3 . . . 56 Robot Hit Streak 40 | . 7 4 7 . 40 26 19 12 23 Robot Miss Streak 4 | . 3 2 4 . 3 2 4 3 3 Penetration Max . | . . . . . . . . . . Secondary Targets 16 | . 2 . . . 4 4 3 1 2 Max Gunslinging Chain 1 | . 1 . . . 1 1 1 1 1 Autonomous 56 | . . . . . . . . . 56 Shots Hit Robots 657 | . 36 10 49 . 118 109 140 64 131 Core Hits 515 | . 20 23 14 1 83 48 97 48 181 Critical Kills 2 | . . . . . 2 . . . . Critical Parts Destroyed . | . . . . . . . . . . Critical Strikes 14 | . 4 . 1 . 4 . 3 . 2 Burn 10 | . 4 . 1 . 2 . 3 . . Destroy 2 | . . . . . 2 . . . . Corrupt 2 | . . . . . . . . . 2 Melee Attacks 33 | . . . . . . 20 . 11 2 Impact 33 | . . . . . . 20 . 11 2 Slashing . | . . . . . . . . . . Piercing . | . . . . . . . . . . Sneak Attacks . | . . . . . . . . . . Combat Hostiles . | . . . . . . . . . . Follow-up Attacks . | . . . . . . . . . . Damage Inflicted 20478 | . 443 644 594 39 3684 1873 4182 1915 7104 Guns 11234 | . 441 55 505 . 1786 1873 2587 1213 2774 Cannons . | . . . . . . . . . . Explosions 9029 | . . 589 . . 1862 . 1573 702 4303 Melee . | . . . . . . . . . . Ramming 143 | . 2 . 41 39 12 . 22 . 27 Kinetic 7845 | . 81 43 129 . 1389 1873 1838 1213 1279 Thermal 2587 | . 360 12 424 . 421 . 749 . 621 Explosive 8265 | . . 589 . . 1719 . 1573 702 3682 Electromagnetic 1638 | . . . . . 143 . . . 1495 Impact . | . . . . . . . . . . Slashing . | . . . . . . . . . . Piercing . | . . . . . . . . . . Highest Corruption 31 | . . . . . 2 2 2 2 31 Average Corruption 2 | . . . . . 2 2 2 2 3 Corruption Purged . | . . . . . . . . . . Corruption Blocked . | . . . . . . . . . . Effects 107 | . . . . . 21 22 23 23 18 Message Errors 18 | . . . . . 3 3 4 3 5 Matter Fused 26 | . . . . . 9 6 2 5 4 Heat Flow Errors 11 | . . . . . 1 1 1 6 2 Energy Discharges 13 | . . . . . 2 2 5 2 2 Parts Rejected 4 | . . . . . 1 1 2 . . Parts Fused 3 | . . . . . . 2 1 . . Data Loss (minor) 15 | . . . . . 4 4 4 2 1 Data Loss (major) 8 | . . . . . 1 2 3 . 2 Misfires 4 | . . . . . . . . 4 . Alerts 2 | . . . . . . . 1 1 . Misdirections 1 | . . . . . . . . . 1 Weapon Failures 2 | . . . . . . 1 . . 1 Overload Shots . | . . . . . . . . . . Overflow Damage 236 | . . 23 . . 70 . 39 . 104 Projectiles . | . . . . . . . . . . Explosions 236 | . . 23 . . 70 . 39 . 104 Melee . | . . . . . . . . . . Knockbacks 1 | . . . 1 . . . . . . Impact 1 | . . . 1 . . . . . . Kinetic . | . . . . . . . . . . Secondary . | . . . . . . . . . . Self-Inflicted Damage 287 | . . 24 . . 15 . . . 248 Shots 7 | . . 1 . . 2 . . . 4 Rammed 19 | . . . 10 2 1 . 2 . 4 Targets Rammed 30 | . 7 . 13 3 1 . 2 . 4 Kicked 7 | . 7 . . . . . . . . Crushed 4 | . . . 3 1 . . . . . Highest Temperature 447 | . 427 84 327 . 447 263 220 272 241 Average Temperature 92 | . 153 44 104 . 98 78 46 68 42 Received Heat Transfer 2573 | . 114 40 20 . 503 360 540 315 681 Effects 20 | . 4 . 4 . 11 . 1 . . Shutdowns 4 | . . . 1 . 3 . . . . Energy Bleed 5 | . 1 . 2 . 1 . 1 . . Interference 5 | . 1 . 1 . 3 . . . . Matter Decay 2 | . 2 . . . . . . . . Damage (major) 4 | . . . . . 4 . . . . Siege Activations . | . . . . . . . . . . Robots Corrupted 4 | . . . . . . . . . 4 Combat Hostiles 4 | . . . . . . . . . 4 Parts Fried 10 | . . . . . . . . . 10 Impact Corruptions . | . . . . . . . . . . Robots Melted . | . . . . . . . . . . Combat Hostiles . | . . . . . . . . . . Parts Melted 9 | . 3 . . . 4 . 2 . . Heat Transferred 5740 | . 1369 37 1058 . 1086 . 1665 . 525 Parts Sabotaged . | . . . . . . . . . . Parts Stolen . | . . . . . . . . . . Parts Stripped . | . . . . . . . . . . Power Chain Reactions 1 | . . . . . . . . . 1 Missiles Intercepted . | . . . . . . . . . . Alert | -11 -10 -10 -10 -9 -8 -8 -8 -8 -7 ------- Run | Jun Mat Min Exi Min Mat Gar Mat Gar Fac Peak Influence 2373 | . 252 85 . 5 737 1513 1327 1856 2373 Initial 974 | . . 45 . . 1 479 737 862 974 Average 820 | . 71 76 . . 276 950 913 1381 1289 Maximum Alert Level 5 | . 1 . . . 3 4 4 5 5 Low Security (%) 22 | . 92 100 . 100 48 . . . . Level 1 4 | . 7 . . . 18 . . . . Level 2 9 | . . . . . 28 18 5 . . Level 3 33 | . . . . . 4 54 74 21 44 Level 4 21 | . . . . . . 27 20 50 32 Level 5 4 | . . . . . . . . 27 3 High Security 3 | . . . . . . . . . 18 Max Security . | . . . . . . . . . . Squads Dispatched 41 | . 1 . . . 9 . 9 . 22 Investigation 1 | . . . . . . . . . 1 Extermination 1 | . . . . . . . . . 1 Reinforcement 18 | . 1 . . . 6 . 6 . 5 Assault 14 | . . . . . . . 2 . 12 Garrison 7 | . . . . . 3 . 1 . 3 Intercept . | . . . . . . . . . . Searches Triggered . | . . . . . . . . . . Construction Impeded 4 | . . . . . 1 . 2 . 1 Haulers Reinforced . | . . . . . . . . . . Active Scanning Responses . | . . . . . . . . . . Cargo Convoy Interrupts . | . . . . . . . . . . Stealth | -11 -10 -10 -10 -9 -8 -8 -8 -8 -7 --------- Run | Jun Mat Min Exi Min Mat Gar Mat Gar Fac Distress Signals 12 | . 1 . . . 2 . 7 . 2 Communications Jammed . | . . . . . . . . . . Distress Signals . | . . . . . . . . . . Times Spotted 301 | . 15 13 25 . 42 29 54 26 97 Peak Tracking Total 15 | . 4 11 10 . 10 5 8 5 15 Tactical Retreats 12 | . . 2 7 . . . 2 . 1 Traps | -11 -10 -10 -10 -9 -8 -8 -8 -8 -7 ------- Run | Jun Mat Min Exi Min Mat Gar Mat Gar Fac Traps Triggered 30 | . 3 . . . 5 11 . 8 3 Indirectly 3 | . . . . . 3 . . . . Trap Hack Attempts . | . . . . . . . . . . Triggered . | . . . . . . . . . . Disarmed . | . . . . . . . . . . Reprogrammed . | . . . . . . . . . . Reused . | . . . . . . . . . . Traps Extracted . | . . . . . . . . . . Installed 1 | . . . . . . 1 . . . Triggered . | . . . . . . . . . . Most Traps Carried 1 | . . . . . . 1 1 . . Exploded 2 | . . . 2 . . . . . . Machines | -11 -10 -10 -10 -9 -8 -8 -8 -8 -7 ---------- Run | Jun Mat Min Exi Min Mat Gar Mat Gar Fac Machines Disabled 37 | . . . 3 . 2 9 . 3 20 Max in Single Turn 5 | . . . 1 . 1 1 . 1 5 Garrison Relay 8 | . . . . . . 5 . 3 . Machines Repaired . | . . . . . . . . . . Machines Sabotaged . | . . . . . . . . . . Overloaded Fab Kills . | . . . . . . . . . . Hacking | -11 -10 -10 -10 -9 -8 -8 -8 -8 -7 --------- Run | Jun Mat Min Exi Min Mat Gar Mat Gar Fac Machines Accessed 19 | . 3 . 2 . 5 1 3 1 4 Terminals 12 | . 2 . . . 3 1 1 1 4 Fabricators . | . . . . . . . . . . Repair Stations 2 | . 1 . . . 1 . . . . Recycling Units . | . . . . . . . . . . Scanalyzers 1 | . . . . . . . 1 . . Garrison Access 2 | . . . . . 1 . 1 . . Total Hacks 51 | . 7 . 6 . 22 3 4 2 7 Successful 24 | . 5 . 6 . 10 . 2 . 1 Failed 27 | . 2 . . . 12 3 2 2 6 Catastrophic 4 | . . . . . 1 . . . 3 Database Lockouts . | . . . . . . . . . . Manual 16 | . 3 . 1 . 10 . 2 . . Terminals 29 | . 3 . . . 12 3 2 2 7 Fabricators . | . . . . . . . . . . Repair Stations 12 | . 4 . . . 8 . . . . Recycling Units . | . . . . . . . . . . Scanalyzers 1 | . . . . . . . 1 . . Garrison Access 3 | . . . . . 2 . 1 . . Terminal Hacks 9 | . 1 . 6 . 1 . . . 1 Record 5 | . . . 5 . . . . . . Open DSF 1 | . . . . . . . . . 1 Branch Access Points 1 | . 1 . . . . . . . . Zone Layout 1 | . . . . . 1 . . . . EX-Prototype ID Bank 1 | . . . 1 . . . . . . Fabricator Hacks . | . . . . . . . . . . Repair Station Hacks 9 | . 3 . . . 6 . . . . Scan Component 5 | . 2 . . . 3 . . . . Repair 4 | . 1 . . . 3 . . . . Recycling Unit Hacks . | . . . . . . . . . . Scanalyzer 1 | . . . . . . . 1 . . Insert Component 1 | . . . . . . . 1 . . Garrison Access Hacks 2 | . . . . . 1 . 1 . . Unlock Access 2 | . . . . . 1 . 1 . . Unauthorized Hacks 3 | . 1 . . . 2 . . . . Terminals 3 | . 1 . . . 2 . . . . Track 1 | . . . . . 1 . . . . Botnet 1 | . 1 . . . . . . . . Disrupt 1 | . . . . . 1 . . . . Fabricators . | . . . . . . . . . . Repair Stations . | . . . . . . . . . . Recycling Units . | . . . . . . . . . . Scanalyzers . | . . . . . . . . . . Garrison Access . | . . . . . . . . . . Data Cores Recovered . | . . . . . . . . . . Used . | . . . . . . . . . . Hacking Detections 15 | . 2 . . . 5 1 2 1 4 Full Trace Events 3 | . . . . . . 1 . 1 1 Feedback Events 1 | . . . . . . . . . 1 Corruption 1 | . . . . . . . . . 1 Feedback Blocked . | . . . . . . . . . . Robot Schematics Acquired . | . . . . . . . . . . Robots Built . | . . . . . . . . . . Authchips . | . . . . . . . . . . Time . | . . . . . . . . . . Total Robot Build Rating . | . . . . . . . . . . Part Schematics Acquired . | . . . . . . . . . . Parts Built . | . . . . . . . . . . Authchips . | . . . . . . . . . . Time . | . . . . . . . . . . Total Part Build Rating . | . . . . . . . . . . Parts Repaired 4 | . 1 . . . 3 . . . . Time 116 | . 32 . . . 84 . . . . Parts Recycled . | . . . . . . . . . . Recycled Matter . | . . . . . . . . . . Retrieved Matter . | . . . . . . . . . . Retrieved Components . | . . . . . . . . . . Parts Scanalyzed . | . . . . . . . . . . Part Schematics Acquired . | . . . . . . . . . . Parts Damaged . | . . . . . . . . . . Bothacking | -11 -10 -10 -10 -9 -8 -8 -8 -8 -7 ------------ Run | Jun Mat Min Exi Min Mat Gar Mat Gar Fac Used RIF Installer 1 | . . . . . . 1 . . . Robots Hacked 1 | . . . . . . . . . 1 Non-combat 1 | . . . . . . . . . 1 Combat . | . . . . . . . . . . Robot Hacks Applied 1 | . . . . . . . . . 1 find_chute 1 | . . . . . . . . . 1 Relay Couplers Released 29 | . . . . . . 19 . 10 . Machine Destruction 29 | . . . . . . 19 . 10 . Attached 1 | . . . . . . . . 1 . Fabnet Peak Effective % . | . . . . . . . . . . Robots Rewired . | . . . . . . . . . . Allies Hacked . | . . . . . . . . . . Hacks Repelled . | . . . . . . . . . . Allies | -11 -10 -10 -10 -9 -8 -8 -8 -8 -7 -------- Run | Jun Mat Min Exi Min Mat Gar Mat Gar Fac Total Allies 3 | . . 3 . . . . . . . Largest Group 3 | . . 3 3 . . . . . . Highest-Rated Group 40 | . . 40 40 . . . . . . Highest-Rated Ally 16 | . . 16 16 . . . . . . Total Orders 1 | . . . 1 . . . . . . STAY 1 | . . . 1 . . . . . . Ally Attacks 64 | . . . 61 . . . . . 3 Total Damage 2299 | . . . 2179 . . . . . 120 Kills 10 | . . . 10 . . . . . . Allies Corrupted 1 | . . . . . . . . . 1 Allies Melted . | . . . . . . . . . . Turrets Deployed 4 | . . . 3 . . . . . 1 Intel | -11 -10 -10 -10 -9 -8 -8 -8 -8 -7 ------- Run | Jun Mat Min Exi Min Mat Gar Mat Gar Fac Robot Analysis Total . | . . . . . . . . . . Derelict Logs Recovered . | . . . . . . . . . . Drone Launches . | . . . . . . . . . . Drone Recoveries . | . . . . . . . . . . Exploration | -11 -10 -10 -10 -9 -8 -8 -8 -8 -7 ------------- Run | Jun Mat Min Exi Min Mat Gar Mat Gar Fac Turns Passed 10934 | . 703 421 1746 120 1786 1758 1355 1366 1679 Spaces Moved 4395 | 1 373 235 951 73 626 617 408 486 625 Core 20 | . . . . . . . . . 20 Treads 3960 | . . 221 951 73 626 617 407 486 579 Legs 389 | 1 373 14 . . . . 1 . . Wheels . | . . . . . . . . . . Hover . | . . . . . . . . . . Flight 26 | . . . . . . . . . 26 Fastest Speed 40 | 120 120 160 160 160 160 240 235 235 40 Average Speed 204 | 120 146 161 160 160 217 240 252 235 226 Slowest Speed 1550 | 120 190 190 160 160 240 240 900 312 1550 Overloaded Moves . | . . . . . . . . . . Propulsion Burnouts . | . . . . . . . . . . Robots Hopped 2 | . . . . . . . . . 2 Cave-ins Triggered . | . . . . . . . . . . Exploration Rate (%) 47 | 2 73 36 89 27 46 74 45 58 21 Regions Visited 9 Branch Regions 3 Pre-discovered Areas 1 | . . . 1 . . . . . . Known Exits Taken 3 | . 1 . . . 1 . 1 . . Unknown Exits Taken 4 | 1 . 1 1 1 . . . . . Scrap Searched 1 | . . 1 . . . . . . . Spaces Dug 35 | . . . . . 20 9 . 4 2 Terrain Destroyed 541 | . . 46 . . 113 9 77 64 232 Melee 15 | . . . . . . 9 . 4 2 Projectile 2 | . . . . . 2 . . . . AOE 524 | . . 46 . . 111 . 77 60 230 Terrain Rammed . | . . . . . . . . . . Walls Destroyed . | . . . . . . . . . . Machines Disabled . | . . . . . . . . . . Actions | -11 -10 -10 -10 -9 -8 -8 -8 -8 -7 --------- Run | Jun Mat Min Exi Min Mat Gar Mat Gar Fac Total 5522 | . 473 258 1090 75 894 771 582 598 781 Wait 225 | . 35 . 32 . 92 6 28 10 22 Move 4385 | . 372 234 950 72 626 616 408 485 622 Hop 1 | . . . . . . . . . 1 Pick Up 89 | . 12 . 14 . 22 9 12 7 13 Fast Attach 42 | . 4 1 1 . 15 4 5 4 8 Attach 50 | . 1 1 4 . 9 5 10 1 19 Detach 10 | . . . . . 1 . 1 . 8 Swap 72 | . 3 2 1 . 19 12 9 14 12 Drop 78 | . 8 3 11 . 17 8 13 8 10 Fire 474 | . 31 17 63 . 92 73 94 44 60 Melee 33 | . . . . . . 20 . 11 2 Ram 3 | . . . . . . . . . 3 Kick 7 | . 7 . . . . . . . . Crush 20 | . . . 13 3 1 . 2 . 1 Escape Stasis 31 | . . . . . . 17 . 14 . Rewire 1 | . . . 1 . . . . . . Trap 1 | . . . . . . 1 . . . Miscellaneous . | . . . . . . . . . . Route ------- -11/Junkyard -10/Materials (discovered 3 exits: [*Mat x2] / *Min) -10/Mines -10/Exiles -9/Mines -8/Materials (discovered 2 exits: *Fac / Gar) -8/Garrison (discovered 3 exits: *Mat x3) -8/Materials -8/Garrison (discovered 2 exits: *Fac x2) -7/Factory (discovered 1 exit: [*Fac]) History --------- Turn | Location | Event 1 | -11/Junkyard | Discovered new exit (range 0) 1 | -11/Junkyard | Entered Materials 154 | -10/Materials | Discovered new exit (range 3) 327 | -10/Materials | Build established: Mutant 360 | -10/Materials | Discovered new exit (range 11) 434 | -10/Materials | Repaired Hrd. Light Armor Plating 569 | -10/Materials | Identified exit to Mines 704 | -10/Materials | Entered Mines 705 | -10/Mines | Assembled infested the area 710 | -10/Mines | Assisted by a Guerilla fighting off Assembled 772 | -10/Mines | Destroyed 10 combat bots 943 | -10/Mines | Deemed a non-threat by the Exiles lab entrance 980 | -10/Mines | Assisted by bots powering up and referring to "LRC-V3" 1119 | -10/Mines | Discovered new exit (range 5) 1125 | -10/Mines | Entered Exiles 1125 | -10/Exiles | Accompanied by 3 allies 1175 | -10/Exiles | Met 8R-AWN 1198 | -10/Exiles | Met EX-HEX 1247 | -10/Exiles | Met EX-BIN 1271 | -10/Exiles | Aligned with FarCom system 1273 | -10/Exiles | Given EX-Vault access code 1318 | -10/Exiles | Opened EX-Vault 1353 | -10/Exiles | Warned to stay clear of 0b10 Research branches 1398 | -10/Exiles | Met EX-DEC 1409 | -10/Exiles | Learned location of Zion (-6) 1457 | -10/Exiles | Discovered new exit (range 10) 1638 | -10/Exiles | Found Deploy-a-Sentry 1640 | -10/Exiles | Found Deploy-a-Sentry 1643 | -10/Exiles | Found Deploy-a-Sentry 1769 | -10/Exiles | DAS Turret deployed 1772 | -10/Exiles | DAS Turret deployed 1840 | -10/Exiles | DAS Turret deployed 1858 | -10/Exiles | Attacked by the Exiles 1858 | -10/Exiles | Allies destroyed EX-DEC 1878 | -10/Exiles | Allies destroyed EX-HEX 1880 | -10/Exiles | Allies destroyed EX-BIN 2013 | -10/Exiles | Destroyed 8R-AWN 2029 | -10/Exiles | Lost 4 parts (1p1n1u1w) 2078 | -10/Exiles | Found Prototype Processor 2081 | -10/Exiles | Found Prototype Energy Gun 2085 | -10/Exiles | Found Deploy-a-Sentry 2871 | -10/Exiles | Left Exiles lab with Deploy-a-Sentry 2871 | -10/Exiles | Entered Mines 2977 | -9/Mines | Discovered new exit (range 8) 2991 | -9/Mines | Entered Materials 2991 | -8/Materials | Evolved 4 slots: Propulsion x1, Utility x3 3536 | -8/Materials | Repaired Lgt. Treads 3568 | -8/Materials | Repaired Lgt. Treads 3606 | -8/Materials | Repaired Imp. Ion Engine 3896 | -8/Materials | Destroyed 10 combat bots 3929 | -8/Materials | Build established: Scavenger-Mutant 4066 | -8/Materials | Discovered new exit (range 16) 4427 | -8/Materials | Garrison activated, responded to threat 4475 | -8/Materials | Destroyed 10 combat bots 4777 | -8/Materials | Identified exit to Garrison 4777 | -8/Materials | Entered Garrison 4826 | -8/Garrison | Triggered checkpoint 4858 | -8/Garrison | Garrison Relay disabled 4946 | -8/Garrison | Triggered checkpoint 5018 | -8/Garrison | Triggered checkpoint 5361 | -8/Garrison | Discovered new exit (range 9) 5624 | -8/Garrison | Triggered checkpoint 5712 | -8/Garrison | Discovered new exit (range 10) 5736 | -8/Garrison | Triggered checkpoint 5781 | -8/Garrison | Garrison Relay disabled 5814 | -8/Garrison | Garrison Relay disabled 6040 | -8/Garrison | Triggered checkpoint 6166 | -8/Garrison | Triggered checkpoint 6216 | -8/Garrison | Garrison Relay disabled 6232 | -8/Garrison | Garrison Relay disabled 6244 | -8/Garrison | Core integrity fell below 50% 6286 | -8/Garrison | Triggered checkpoint 6385 | -8/Garrison | Discovered new exit (range 11) 6407 | -8/Garrison | Installed Relay Interface Framework 6535 | -8/Garrison | Entered Materials 7335 | -8/Materials | First assault squad dispatched 7530 | -8/Materials | Identified Exp. Core Analyzer 7768 | -8/Materials | Garrison activated, responded to threat 7890 | -8/Materials | Identified exit to Garrison 7890 | -8/Materials | Entered Garrison 7931 | -8/Garrison | Triggered checkpoint 7949 | -8/Garrison | Core integrity fell below 20% 8094 | -8/Garrison | Garrison Relay disabled 8178 | -8/Garrison | Triggered checkpoint 8328 | -8/Garrison | Triggered checkpoint 8377 | -8/Garrison | Garrison Relay disabled 8435 | -8/Garrison | Discovered new exit (range 10) 8874 | -8/Garrison | Garrison Relay disabled 8939 | -8/Garrison | Discovered new exit (range 9) 9126 | -8/Garrison | Triggered checkpoint 9256 | -8/Garrison | Entered Factory 9256 | -7/Factory | Evolved 2 slots: Propulsion x1, Utility x1 9273 | -7/Factory | Identified exit to DSF 9656 | -7/Factory | First assault squad dispatched 9869 | -7/Factory | Destroyed 10 combat bots 10213 | -7/Factory | Identified AWS/EX-DEC 10599 | -7/Factory | Destroyed 11 combat bots 10616 | -7/Factory | High security lockdown imminent 10642 | -7/Factory | Lost 3 parts (2n1w) 10696 | -7/Factory | High security lockdown engaged 10720 | -7/Factory | Garrison activated, responded to threat 10770 | -7/Factory | System corruption reached 10% 10774 | -7/Factory | Destroyed 9 combat bots 10890 | -7/Factory | System corruption reached 30% 10891 | -7/Factory | DAS Turret deployed 10900 | -7/Factory | Destroyed 11 combat bots 10901 | -7/Factory | Core integrity fell below 50% 10926 | -7/Factory | Discovered new exit (range 15) 10927 | -7/Factory | Lost 9 parts (1p4n2u2w) 10933 | -7/Factory | Core integrity fell below 20% 10935 | -7/Factory | Destroyed by Y-54 Guardian with Flak Gun Last Messages --------------- reinforcements to area. 10926_ EXIT=FOUND 10929_ Xenon Bombardment Thruster severed. 10929_ R-06 Scavenger exits level. 10930_ Acquired Xenon Bombardment Thruster. 10930_ R-06 Scavenger exits level. 10932_ T-07 Excavator exits level. 10932_ Hacking Suite destroyed. 10932_ Exp. Core Analyzer destroyed. 10932_ Xenon Bombardment Thruster destroyed. 10932_ Slammed into Y-54 Guardian. 10933_ Slammed into H-61 Shepherd. 10933_ R-06 Scavenger exits level. 10934_ Slammed into Y-54 Guardian. 10934_ H-61 Shepherd calls for reinforcements. 10934_ ALERT: Hostile activity reported, dispatching reinforcements to area. 10934_ Knocked back. 10935_ System corrupted: Heat flow error (+124). 10935_ Acquired 6 matter. Map ----- +----------------------------------------------------+ | ?????????????????????????????????????????????????? | | ?????????????????????????????????????????????????? | | ?????????????????????????????????????????????????? | | ?????????????????????????????????????????????????? | | ?????????????????????????????????????????????????? | | ?????????????????????????????????????????????????? | | ?????????????????????????????????????????????????? | | ?????????????????????????????????????????????????? | | ?????????????????????????????????????????????????? | | ?????????????????????????????????????????????????? | | ?????????????????????????????????????????????????? | | ?????????????????????????????????????????????????? | | ?????????????????????????????????????????????????? | | ?????????????????????????????????????????????????? | | ?????????????????????????????????????????????????? | | ?????????????#???????????????????????????????????? | | ????????????## ??????????????????????????????????? | | ???????????? ?????????????????????????????????? | | ???????????? ????????????????????????????????? | | ?????????????? ???????????????????????????????? | | ???????????????# ?#######??????????????????????? | | ???????????????# ## #??????????????????????? | | ???????????????# #??????????????????????? | | ???????????????# Y !#??????????????????????? | | ???????????????# Y #??????????????????????? | | ????????????????????# YH @#??????????????????????? | | ????????????????????### ###??????????????????????? | | ??????????????????????# #????????????????????????? | | ??????????????????????# ############?????????????? | | ????????????????#+###?#% ??????????? | | ????????????????? # #???????????????? | | ???????????????????"" # #???????????????? | | ????????????????????? / #???????????????? | | ??????????????????????# ######## #???????????????? | | ??????????????????????# #????????????????????????? | | ##########????????????# #????###?????????????????? | | #??????#####?# #?? #?????????????????? | | ######## ### # """ #?????????????????? | | " + """ #?????????????????? | | ! ######## ##### """ #?????????????????? | | #??????## ##?????? #?????????????????? | | / #?###???# #????????? #?????????????????? | | +? ??? #???????????#?????????????????? | | = #?# #??##+#?????????????????????????????? | | #?# #???????????????????????????????????? | | #?# #???????????????????????????????????? | | #?# #???????????????????????????????????? | | #?# #???????????????????????????????????? | | ###### #######?????????????????????????????? | | %! ^ ########+####?????????????????? | +----------------------------------------------------+ Best States ------------- Heat Dissipation 67 Energy Generation 18 Energy Capacity 310 Matter Stores 300 Matter Capacity 300 Sight Range 16 Terrain Scan Density 10 Armor Coverage 375 Utility Shielding 33 Evasion (%) 55 Targeting Accuracy 24 Core Analysis 8 Recoil Reduction 4 Offensive Hacking 10 Item Schematics ----------------- None Robot Schematics ------------------ None Fabricated ------------ Nothing Alien Tech Used ----------------- None Achievements -------------- None Challenges ------------ None Game ------ Seed DeliveryPropulsionChainsword Manual? 0 Play Time 01:14:35 Cumulative 302.1 hours Start 2023.04.14 @ 23:51:50 End 2023.04.16 @ 20:29:32 Sessions 5 Manual Loads 0 Difficulty Rogue Special Mode None Game No. 338 Rogue 338 Adventurer 0 Explorer 0 Win Type - Total 27 Types 16/3/2/1/2/0/3/0/0 Lore% 82 Gallery% 78 Achievement% 82 Wizard Run 0 Options --------- ASCII 0 Keyboard 0 Movement Arrows Keybinds 0 Fullscreen 2 Font 24/Smallcaps Map View 76x50 Tactical HUD 1 Map Filters NONE Filters NONE Steam 1 RUN: d2031e26-bcc2-4c7f-aca2-ce6e9df27af9